[Event "Early-Titled-Tuesday-Blitz-February-20-2024"]
[Site "Chess.com"]
[Date "2024.02.20"]
[Round "1"]
[White "chessdjw"]
[Black "semchik73"]
[Result "1-0"]
[WhiteElo "2750"]
[BlackElo "2409"]
[TimeControl "180+1"]
[EndTime "8:04:15 PST"]
[Termination "chessdjw won by resignation"]

1. d4 {[%clk 0:03:00.9]} 1... d5 {[%clk 0:02:59.8]} 2. c4 {[%clk 0:03:01.2]}
2... c6 {[%clk 0:03:00.3]} 3. Nc3 {[%clk 0:03:01.1]} 3... Nf6 {[%clk 0:03:00.4]}
4. e3 {[%clk 0:03:01.4]} 4... g6 {[%clk 0:03:00.1]} 5. Nf3 {[%clk 0:03:01.3]}
5... Bg7 {[%clk 0:03:00.4]} 6. Be2 {[%clk 0:03:02]} 6... O-O {[%clk 0:03:00.2]}
7. O-O {[%clk 0:03:02.6]} 7... dxc4 {[%clk 0:03:00.5]} 8. Bxc4 {[%clk
0:03:02.2]} 8... Bg4 {[%clk 0:03:01.2]} 9. h3 {[%clk 0:03:02.1]} 9... Bxf3
{[%clk 0:03:01]} 10. Qxf3 {[%clk 0:03:03]} 10... Nbd7 {[%clk 0:03:01.3]} 11. Rd1
{[%clk 0:03:03.5]} 11... e5 {[%clk 0:03:01.7]} 12. a3 {[%clk 0:03:03.6]} 12...
Qe7 {[%clk 0:02:58.6]} 13. Ba2 {[%clk 0:03:03.8]} 13... e4 {[%clk 0:02:54.6]}
14. Qe2 {[%clk 0:03:03.6]} 14... Nb6 {[%clk 0:02:50.8]} 15. Bd2 {[%clk
0:03:03.6]} 15... Rad8 {[%clk 0:02:49.7]} 16. Rac1 {[%clk 0:03:03.7]} 16... Rfe8
{[%clk 0:02:39.8]} 17. Kh1 {[%clk 0:03:03.4]} 17... Nfd5 {[%clk 0:02:37.1]} 18.
Nxd5 {[%clk 0:03:02.3]} 18... Nxd5 {[%clk 0:02:36.4]} 19. Rc5 {[%clk 0:03:01.6]}
19... Qh4 {[%clk 0:02:31.4]} 20. Rdc1 {[%clk 0:02:56.6]} 20... h5 {[%clk
0:02:25.1]} 21. Kg1 {[%clk 0:02:53]} 21... Re6 {[%clk 0:02:11.5]} 22. Bxd5
{[%clk 0:02:45.7]} 22... Rxd5 {[%clk 0:02:10.9]} 23. Rxd5 {[%clk 0:02:45.5]}
23... cxd5 {[%clk 0:02:11.3]} 24. Qb5 {[%clk 0:02:37.4]} 24... Rf6 {[%clk
0:01:59.6]} 25. Be1 {[%clk 0:02:36.5]} 25... Qg5 {[%clk 0:01:55.1]} 26. Qxb7
{[%clk 0:02:29.1]} 26... Rb6 {[%clk 0:01:54]} 27. Qa8+ {[%clk 0:02:22.5]} 27...
Kh7 {[%clk 0:01:52.2]} 28. b4 {[%clk 0:02:22.9]} 28... Bxd4 {[%clk 0:01:46.8]}
29. Rc7 {[%clk 0:02:21.9]} 29... Rf6 {[%clk 0:01:37.2]} 30. exd4 {[%clk
0:02:15.7]} 30... e3 {[%clk 0:01:36]} 31. Rc8 {[%clk 0:02:01.7]} 31... exf2+
{[%clk 0:01:34.1]} 32. Bxf2 {[%clk 0:02:00.7]} 32... Rxf2 {[%clk 0:01:24]} 33.
Rh8+ {[%clk 0:01:59.9]} 33... Kg7 {[%clk 0:01:24.1]} 34. Qf8+ {[%clk 0:02:00.1]}
34... Kf6 {[%clk 0:01:24.5]} 35. Qd8+ {[%clk 0:02:00.7]} 35... Kf5 {[%clk
0:01:25]} 36. Qxg5+ {[%clk 0:02:01.2]} 36... Kxg5 {[%clk 0:01:25.5]} 37. Kxf2
{[%clk 0:02:02]} 37... f5 {[%clk 0:01:25.4]} 38. Rd8 {[%clk 0:02:01.4]} 38...
Kf4 {[%clk 0:01:24.6]} 39. Rxd5 {[%clk 0:02:01.5]} 39... Ke4 {[%clk 0:01:25.2]}
40. Rd7 {[%clk 0:02:01.9]} 1-0

[Event "Early-Titled-Tuesday-Blitz-February-20-2024"]
[Site "Chess.com"]
[Date "2024.02.20"]
[Round "1"]
[White "sotochess"]
[Black "WiktoriaPOL"]
[Result "1-0"]
[WhiteElo "2623"]
[BlackElo "2276"]
[TimeControl "180+1"]
[EndTime "8:04:28 PST"]
[Termination "sotochess won on time"]

1. e4 {[%clk 0:03:00.5]} 1... c5 {[%clk 0:01:32.4]} 2. Nf3 {[%clk 0:03:00.1]}
2... d6 {[%clk 0:01:31.4]} 3. d4 {[%clk 0:03:00]} 3... cxd4 {[%clk 0:01:32]} 4.
Nxd4 {[%clk 0:03:00.9]} 4... Nf6 {[%clk 0:01:32.6]} 5. f3 {[%clk 0:03:01.3]}
5... Nc6 {[%clk 0:01:30.3]} 6. c4 {[%clk 0:03:00.9]} 6... g6 {[%clk 0:01:29.4]}
7. Nc2 {[%clk 0:03:00.8]} 7... Bg7 {[%clk 0:01:28.7]} 8. Nc3 {[%clk 0:03:01.7]}
8... O-O {[%clk 0:01:26.8]} 9. Be3 {[%clk 0:03:01.9]} 9... a6 {[%clk 0:01:20.5]}
10. Qd2 {[%clk 0:03:01.2]} 10... Rb8 {[%clk 0:01:18.4]} 11. Be2 {[%clk
0:03:00.7]} 11... Be6 {[%clk 0:01:16.4]} 12. O-O {[%clk 0:03:00]} 12... Ne5
{[%clk 0:00:39.2]} 13. b3 {[%clk 0:02:58.4]} 13... Bd7 {[%clk 0:00:37.7]} 14.
Rfd1 {[%clk 0:02:55]} 14... Qe8 {[%clk 0:00:38.1]} 15. h3 {[%clk 0:02:50.8]}
15... b5 {[%clk 0:00:37.2]} 16. f4 {[%clk 0:02:46.5]} 16... b4 {[%clk
0:00:33.5]} 17. fxe5 {[%clk 0:02:45.6]} 17... bxc3 {[%clk 0:00:33.2]} 18. Qxc3
{[%clk 0:02:45.6]} 18... dxe5 {[%clk 0:00:31.9]} 19. Bf3 {[%clk 0:02:39.5]}
19... Bc6 {[%clk 0:00:31.3]} 20. Qd3 {[%clk 0:02:38.9]} 20... Qc8 {[%clk
0:00:28.5]} 21. Nb4 {[%clk 0:02:38.4]} 1-0

[Event "Early-Titled-Tuesday-Blitz-February-20-2024"]
[Site "Chess.com"]
[Date "2024.02.20"]
[Round "1"]
[White "lamomiajunior"]
[Black "arturdailima"]
[Result "1-0"]
[WhiteElo "2728"]
[BlackElo "2393"]
[TimeControl "180+1"]
[EndTime "8:04:29 PST"]
[Termination "lamomiajunior won by resignation"]

1. d4 {[%clk 0:03:00.9]} 1... d5 {[%clk 0:02:56]} 2. c4 {[%clk 0:03:01.3]} 2...
e6 {[%clk 0:02:56.3]} 3. Nc3 {[%clk 0:03:01.7]} 3... c5 {[%clk 0:02:56.5]} 4.
cxd5 {[%clk 0:03:02.1]} 4... exd5 {[%clk 0:02:57.4]} 5. Nf3 {[%clk 0:03:01.8]}
5... Nc6 {[%clk 0:02:57.4]} 6. dxc5 {[%clk 0:03:01.2]} 6... d4 {[%clk
0:02:57.6]} 7. Na4 {[%clk 0:02:59.7]} 7... b5 {[%clk 0:02:46.9]} 8. cxb6 {[%clk
0:02:53.7]} 8... axb6 {[%clk 0:02:47.8]} 9. b3 {[%clk 0:02:37.8]} 9... b5 {[%clk
0:02:45.5]} 10. Nb2 {[%clk 0:02:37.8]} 10... Bb4+ {[%clk 0:02:16.6]} 11. Bd2
{[%clk 0:02:37.6]} 11... Bc3 {[%clk 0:02:16.9]} 12. Bxc3 {[%clk 0:02:28.1]}
12... dxc3 {[%clk 0:02:17]} 13. Nd3 {[%clk 0:02:17.4]} 13... Nge7 {[%clk
0:02:01.9]} 14. g3 {[%clk 0:02:17]} 14... O-O {[%clk 0:02:00]} 15. Bg2 {[%clk
0:02:17.7]} 15... Bf5 {[%clk 0:01:52.7]} 16. O-O {[%clk 0:02:16.8]} 16... Qb6
{[%clk 0:01:52.5]} 17. b4 {[%clk 0:02:10.3]} 17... Rfc8 {[%clk 0:01:37.2]} 18.
a3 {[%clk 0:02:09.8]} 18... Ra4 {[%clk 0:01:18.9]} 19. Nc5 {[%clk 0:02:07.8]}
19... Ra7 {[%clk 0:01:17.8]} 20. e4 {[%clk 0:02:06.9]} 20... Bg4 {[%clk
0:01:15.5]} 21. Qb3 {[%clk 0:01:56.9]} 21... Bxf3 {[%clk 0:00:58.4]} 22. Bxf3
{[%clk 0:01:57.8]} 22... Nd4 {[%clk 0:00:54.6]} 23. Qxc3 {[%clk 0:01:58.1]}
23... Qe6 {[%clk 0:00:47.1]} 24. Qxd4 {[%clk 0:01:55.7]} 1-0

[Event "Early-Titled-Tuesday-Blitz-February-20-2024"]
[Site "Chess.com"]
[Date "2024.02.20"]
[Round "1"]
[White "ImportedItalianMaple"]
[Black "Jospem"]
[Result "0-1"]
[WhiteElo "2534"]
[BlackElo "3077"]
[TimeControl "180+1"]
[EndTime "8:04:31 PST"]
[Termination "Jospem won by resignation"]

1. Nf3 {[%clk 0:02:56.1]} 1... c5 {[%clk 0:02:32.4]} 2. e4 {[%clk 0:02:53.2]}
2... d6 {[%clk 0:02:31.8]} 3. Bb5+ {[%clk 0:02:50.7]} 3... Nd7 {[%clk
0:02:30.9]} 4. O-O {[%clk 0:02:48.6]} 4... a6 {[%clk 0:02:30.8]} 5. Bd3 {[%clk
0:02:48.1]} 5... Ngf6 {[%clk 0:02:30.5]} 6. c3 {[%clk 0:02:48.6]} 6... e6 {[%clk
0:02:30.2]} 7. Bc2 {[%clk 0:02:48.6]} 7... b6 {[%clk 0:02:30.4]} 8. d4 {[%clk
0:02:48.3]} 8... Bb7 {[%clk 0:02:31.1]} 9. Re1 {[%clk 0:02:48.4]} 9... Be7
{[%clk 0:02:31.8]} 10. e5 {[%clk 0:02:36.4]} 10... dxe5 {[%clk 0:02:31.8]} 11.
dxe5 {[%clk 0:02:36.4]} 11... Nd5 {[%clk 0:02:32.5]} 12. c4 {[%clk 0:02:28.4]}
12... Nb4 {[%clk 0:02:32.3]} 13. Be4 {[%clk 0:02:28.2]} 13... Qc7 {[%clk
0:02:32.5]} 14. Bf4 {[%clk 0:02:20.1]} 14... Bxe4 {[%clk 0:02:29.6]} 15. Rxe4
{[%clk 0:02:20.1]} 15... Rd8 {[%clk 0:02:30.1]} 16. Qe2 {[%clk 0:02:12.3]} 16...
O-O {[%clk 0:02:23.3]} 17. Nc3 {[%clk 0:02:07.9]} 17... Rfe8 {[%clk 0:02:20.7]}
18. Rd1 {[%clk 0:02:07.1]} 18... Nf8 {[%clk 0:02:20.3]} 19. Rxd8 {[%clk
0:01:45.3]} 19... Rxd8 {[%clk 0:02:21.2]} 20. Bg3 {[%clk 0:01:45.4]} 20... Nc6
{[%clk 0:02:08.6]} 21. Rg4 {[%clk 0:01:03.7]} 21... Ng6 {[%clk 0:01:57.4]} 22.
h4 {[%clk 0:00:52.6]} 22... h5 {[%clk 0:01:56.9]} 23. Re4 {[%clk 0:00:52.6]}
23... Nd4 {[%clk 0:01:56.4]} 24. Qe3 {[%clk 0:00:47.5]} 24... Nf5 {[%clk
0:01:55]} 25. Qf4 {[%clk 0:00:41.9]} 0-1

[Event "Early-Titled-Tuesday-Blitz-February-20-2024"]
[Site "Chess.com"]
[Date "2024.02.20"]
[Round "1"]
[White "Fandorine"]
[Black "PositionalPanther"]
[Result "1-0"]
[WhiteElo "2958"]
[BlackElo "2512"]
[TimeControl "180+1"]
[EndTime "8:04:31 PST"]
[Termination "Fandorine won by resignation"]

1. d4 {[%clk 0:03:00.9]} 1... d5 {[%clk 0:02:57.7]} 2. c4 {[%clk 0:03:01.1]}
2... e6 {[%clk 0:02:57]} 3. Nf3 {[%clk 0:03:01.6]} 3... a6 {[%clk 0:02:56.8]} 4.
Bg5 {[%clk 0:03:00.6]} 4... Be7 {[%clk 0:02:55.9]} 5. Bxe7 {[%clk 0:02:59.4]}
5... Nxe7 {[%clk 0:02:56.4]} 6. e3 {[%clk 0:02:57.2]} 6... O-O {[%clk
0:02:55.3]} 7. Qc2 {[%clk 0:02:57.7]} 7... h6 {[%clk 0:02:50.2]} 8. Nc3 {[%clk
0:02:57.1]} 8... Nd7 {[%clk 0:02:45.9]} 9. h4 {[%clk 0:02:45.7]} 9... dxc4
{[%clk 0:02:40.1]} 10. Bxc4 {[%clk 0:02:44.3]} 10... b5 {[%clk 0:02:40.3]} 11.
Bd3 {[%clk 0:02:43.9]} 11... Bb7 {[%clk 0:02:34.9]} 12. Ne4 {[%clk 0:02:38.1]}
12... Rc8 {[%clk 0:02:20.7]} 13. Nc5 {[%clk 0:02:31.6]} 13... Nxc5 {[%clk
0:02:18.3]} 14. Qxc5 {[%clk 0:02:30.6]} 14... Bxf3 {[%clk 0:02:09.5]} 15. gxf3
{[%clk 0:02:31.5]} 15... Qd5 {[%clk 0:02:09.8]} 16. Qxe7 {[%clk 0:02:25.9]}
16... c5 {[%clk 0:01:57.1]} 17. Rg1 {[%clk 0:02:03.7]} 17... Kh8 {[%clk
0:01:39.6]} 18. Ke2 {[%clk 0:01:46.2]} 18... cxd4 {[%clk 0:01:36.7]} 19. Rxg7
{[%clk 0:01:42.1]} 19... Rc2+ {[%clk 0:01:05.5]} 20. Bxc2 {[%clk 0:01:41.4]}
20... d3+ {[%clk 0:00:55.4]} 21. Bxd3 {[%clk 0:01:40.7]} 21... Kxg7 {[%clk
0:00:55.1]} 22. Rg1+ {[%clk 0:01:39.3]} 1-0

[Event "Early-Titled-Tuesday-Blitz-February-20-2024"]
[Site "Chess.com"]
[Date "2024.02.20"]
[Round "1"]
[White "TigrVShlyape"]
[Black "Triumphmate"]
[Result "1-0"]
[WhiteElo "2923"]
[BlackElo "2508"]
[TimeControl "180+1"]
[EndTime "8:04:35 PST"]
[Termination "TigrVShlyape won by resignation"]

1. e4 {[%clk 0:03:00.9]} 1... d5 {[%clk 0:02:59.9]} 2. exd5 {[%clk 0:02:58.6]}
2... Nf6 {[%clk 0:03:00]} 3. d4 {[%clk 0:02:57.8]} 3... Bg4 {[%clk 0:03:00.5]}
4. Be2 {[%clk 0:02:53.7]} 4... Bxe2 {[%clk 0:02:58.1]} 5. Qxe2 {[%clk
0:02:53.8]} 5... Qxd5 {[%clk 0:02:59]} 6. Nf3 {[%clk 0:02:54.1]} 6... Nc6 {[%clk
0:02:57.3]} 7. c4 {[%clk 0:02:46]} 7... Qe4 {[%clk 0:02:57.1]} 8. Nc3 {[%clk
0:02:43]} 8... Qxe2+ {[%clk 0:02:53.7]} 9. Kxe2 {[%clk 0:02:43.2]} 9... e6
{[%clk 0:02:52.3]} 10. Rd1 {[%clk 0:02:33.3]} 10... O-O-O {[%clk 0:02:50.2]} 11.
a3 {[%clk 0:02:28.4]} 11... g6 {[%clk 0:02:37]} 12. h3 {[%clk 0:02:27.2]} 12...
Bg7 {[%clk 0:02:36]} 13. Be3 {[%clk 0:02:26.7]} 13... Rd7 {[%clk 0:02:32.2]} 14.
Ne5 {[%clk 0:02:20.9]} 14... Nxe5 {[%clk 0:02:08.5]} 15. dxe5 {[%clk 0:02:20.4]}
15... Rxd1 {[%clk 0:01:59.5]} 16. Rxd1 {[%clk 0:02:20]} 16... Nd7 {[%clk
0:01:59.5]} 17. f4 {[%clk 0:02:20.1]} 17... Rd8 {[%clk 0:01:53.5]} 18. Ne4
{[%clk 0:02:17.4]} 18... f6 {[%clk 0:01:52.8]} 19. exf6 {[%clk 0:02:16.4]} 19...
Nxf6 {[%clk 0:01:53.7]} 20. Rxd8+ {[%clk 0:02:05.8]} 20... Kxd8 {[%clk
0:01:54.6]} 21. Nc5 {[%clk 0:02:05.4]} 21... Ke7 {[%clk 0:01:51.3]} 22. Nxb7
{[%clk 0:02:05]} 22... Ne4 {[%clk 0:01:48.9]} 23. Kd3 {[%clk 0:02:01.4]} 23...
Ng3 {[%clk 0:01:34.7]} 24. b4 {[%clk 0:01:59.7]} 24... Nf5 {[%clk 0:01:31.1]}
25. Bxa7 {[%clk 0:01:58.5]} 25... Kd7 {[%clk 0:01:29]} 26. Bf2 {[%clk 0:01:57]}
26... Kc6 {[%clk 0:01:28.9]} 27. Na5+ {[%clk 0:01:56]} 27... Kd7 {[%clk
0:01:27.7]} 28. b5 {[%clk 0:01:55.8]} 28... e5 {[%clk 0:01:27.9]} 29. fxe5
{[%clk 0:01:54.6]} 29... Bxe5 {[%clk 0:01:28.8]} 30. Nc6 {[%clk 0:01:52.8]}
30... Bb2 {[%clk 0:01:22.5]} 31. a4 {[%clk 0:01:52.9]} 31... Nd6 {[%clk
0:01:22]} 32. a5 {[%clk 0:01:53]} 32... Kc8 {[%clk 0:01:22.7]} 33. a6 {[%clk
0:01:53.1]} 33... Nf7 {[%clk 0:01:19.7]} 34. Bg3 {[%clk 0:01:52.4]} 34... Bf6
{[%clk 0:01:17.1]} 35. c5 {[%clk 0:01:52.1]} 35... Ng5 {[%clk 0:01:15.1]} 36. b6
{[%clk 0:01:50.4]} 36... Ne6 {[%clk 0:01:14.7]} 37. b7+ {[%clk 0:01:50.3]} 1-0

[Event "Early-Titled-Tuesday-Blitz-February-20-2024"]
[Site "Chess.com"]
[Date "2024.02.20"]
[Round "1"]
[White "NewBornNow"]
[Black "Lucky_Puncher"]
[Result "1-0"]
[WhiteElo "2790"]
[BlackElo "2437"]
[TimeControl "180+1"]
[EndTime "8:04:36 PST"]
[Termination "NewBornNow won by resignation"]

1. e4 {[%clk 0:03:00.9]} 1... c5 {[%clk 0:02:59.4]} 2. Nf3 {[%clk 0:03:00.7]}
2... d6 {[%clk 0:02:59.4]} 3. d4 {[%clk 0:03:00.3]} 3... cxd4 {[%clk 0:03:00.1]}
4. Nxd4 {[%clk 0:03:00.2]} 4... Nf6 {[%clk 0:03:00.8]} 5. Bd3 {[%clk 0:03:00]}
5... e5 {[%clk 0:02:55.1]} 6. Nb3 {[%clk 0:02:54.2]} 6... d5 {[%clk 0:02:54.2]}
7. exd5 {[%clk 0:02:51.6]} 7... Nxd5 {[%clk 0:02:52.8]} 8. O-O {[%clk
0:02:50.8]} 8... Be6 {[%clk 0:02:44.1]} 9. Be4 {[%clk 0:02:40.8]} 9... Nc6
{[%clk 0:02:41.6]} 10. Qf3 {[%clk 0:02:40]} 10... Nd4 {[%clk 0:02:02.8]} 11.
Nxd4 {[%clk 0:02:36]} 11... exd4 {[%clk 0:02:03.7]} 12. Rd1 {[%clk 0:02:33.2]}
12... Bc5 {[%clk 0:00:36.9]} 13. c4 {[%clk 0:02:28.4]} 13... Ne7 {[%clk
0:00:27.7]} 14. Bxb7 {[%clk 0:02:25.2]} 14... Rb8 {[%clk 0:00:28]} 15. Bc6+
{[%clk 0:02:25.1]} 15... Bd7 {[%clk 0:00:27.1]} 16. Be4 {[%clk 0:02:20.6]} 16...
O-O {[%clk 0:00:24.8]} 17. Bxh7+ {[%clk 0:02:18.3]} 17... Kh8 {[%clk 0:00:20.3]}
18. Qh5 {[%clk 0:02:12.7]} 1-0

[Event "Early-Titled-Tuesday-Blitz-February-20-2024"]
[Site "Chess.com"]
[Date "2024.02.20"]
[Round "1"]
[White "edgarhay012"]
[Black "ragnaroek66"]
[Result "0-1"]
[WhiteElo "2637"]
[BlackElo "2390"]
[TimeControl "180+1"]
[EndTime "8:04:39 PST"]
[Termination "ragnaroek66 won by resignation"]

1. e4 {[%clk 0:03:00.9]} 1... c5 {[%clk 0:02:59.8]} 2. Nc3 {[%clk 0:03:00.8]}
2... Nc6 {[%clk 0:03:00]} 3. Bb5 {[%clk 0:03:00.4]} 3... Nd4 {[%clk 0:02:58.8]}
4. Bc4 {[%clk 0:03:00.9]} 4... e6 {[%clk 0:02:58.6]} 5. Nge2 {[%clk 0:03:01.3]}
5... Nf6 {[%clk 0:02:56.6]} 6. O-O {[%clk 0:03:01.4]} 6... a6 {[%clk 0:02:55.4]}
7. a4 {[%clk 0:03:01.3]} 7... d5 {[%clk 0:02:49.3]} 8. exd5 {[%clk 0:03:02.2]}
8... exd5 {[%clk 0:02:50.2]} 9. Ba2 {[%clk 0:03:01.8]} 9... Nc6 {[%clk
0:02:49.8]} 10. d4 {[%clk 0:03:01.2]} 10... c4 {[%clk 0:02:49.4]} 11. Nf4 {[%clk
0:03:00.3]} 11... Be7 {[%clk 0:02:36.4]} 12. Be3 {[%clk 0:02:54.3]} 12... O-O
{[%clk 0:02:32.9]} 13. h3 {[%clk 0:02:53.7]} 13... Bb4 {[%clk 0:02:25.6]} 14.
Qf3 {[%clk 0:02:42.9]} 14... Be6 {[%clk 0:02:13]} 15. Nxe6 {[%clk 0:02:30.8]}
15... fxe6 {[%clk 0:02:12.6]} 16. Qe2 {[%clk 0:02:31.3]} 16... Qd6 {[%clk
0:01:55.3]} 17. Nd1 {[%clk 0:02:18.6]} 17... Rae8 {[%clk 0:01:52.5]} 18. f4
{[%clk 0:02:15.8]} 18... Ne4 {[%clk 0:01:48]} 19. Rf3 {[%clk 0:02:12.3]} 19...
b5 {[%clk 0:01:40.1]} 20. c3 {[%clk 0:02:11.2]} 20... Ba5 {[%clk 0:01:39.6]} 21.
Nf2 {[%clk 0:02:11.8]} 21... Nf6 {[%clk 0:01:35.3]} 22. axb5 {[%clk 0:02:10.4]}
22... axb5 {[%clk 0:01:35]} 23. Bb1 {[%clk 0:02:11.2]} 23... b4 {[%clk
0:01:32.3]} 24. Bd2 {[%clk 0:02:07.4]} 24... Rb8 {[%clk 0:01:25.7]} 25. Ng4
{[%clk 0:02:01.1]} 25... bxc3 {[%clk 0:01:16.5]} 26. bxc3 {[%clk 0:01:59.6]}
26... Rb2 {[%clk 0:01:15]} 27. Nxf6+ {[%clk 0:01:55.9]} 27... Rxf6 {[%clk
0:01:10.8]} 28. Qe1 {[%clk 0:01:55.7]} 28... Rf8 {[%clk 0:01:04.9]} 29. Re3
{[%clk 0:01:36.3]} 0-1

[Event "Early-Titled-Tuesday-Blitz-February-20-2024"]
[Site "Chess.com"]
[Date "2024.02.20"]
[Round "1"]
[White "mjelcic"]
[Black "MaestroCheck"]
[Result "0-1"]
[WhiteElo "2184"]
[BlackElo "2580"]
[TimeControl "180+1"]
[EndTime "8:04:40 PST"]
[Termination "MaestroCheck won by resignation"]

1. d4 {[%clk 0:02:59.1]} 1... Nf6 {[%clk 0:02:58.1]} 2. c4 {[%clk 0:02:56.7]}
2... d6 {[%clk 0:02:56.7]} 3. Nc3 {[%clk 0:02:56.9]} 3... e5 {[%clk 0:02:57.1]}
4. dxe5 {[%clk 0:02:55.6]} 4... dxe5 {[%clk 0:02:58]} 5. Qxd8+ {[%clk
0:02:55.5]} 5... Kxd8 {[%clk 0:02:58.4]} 6. Bg5 {[%clk 0:02:52.6]} 6... c6
{[%clk 0:02:54.2]} 7. O-O-O+ {[%clk 0:02:45.8]} 7... Kc7 {[%clk 0:02:54.4]} 8.
e4 {[%clk 0:02:33.7]} 8... Be6 {[%clk 0:02:48]} 9. f4 {[%clk 0:02:32.3]} 9...
Ng4 {[%clk 0:02:31.8]} 10. Nh3 {[%clk 0:02:24.1]} 10... f6 {[%clk 0:02:18.4]}
11. f5 {[%clk 0:02:20.2]} 11... Bf7 {[%clk 0:02:10.5]} 12. Bd2 {[%clk
0:02:12.6]} 12... Nd7 {[%clk 0:02:08.4]} 13. Be2 {[%clk 0:02:12.2]} 13... h5
{[%clk 0:02:08.7]} 14. Bxg4 {[%clk 0:02:11]} 14... hxg4 {[%clk 0:02:08]} 15. Nf2
{[%clk 0:02:11.2]} 15... Bh5 {[%clk 0:02:07.4]} 16. g3 {[%clk 0:02:08.4]} 16...
Bc5 {[%clk 0:02:06.9]} 17. Rdf1 {[%clk 0:02:02]} 17... a5 {[%clk 0:02:02.8]} 18.
Ncd1 {[%clk 0:02:00.8]} 18... a4 {[%clk 0:02:02.3]} 19. Be3 {[%clk 0:02:00.7]}
19... Bf7 {[%clk 0:02:00.8]} 20. Bxc5 {[%clk 0:01:57.4]} 20... Nxc5 {[%clk
0:02:00.9]} 21. Ne3 {[%clk 0:01:56]} 21... Rad8 {[%clk 0:01:56.7]} 22. Rd1
{[%clk 0:01:54.4]} 22... Rxd1+ {[%clk 0:01:57.2]} 23. Kxd1 {[%clk 0:01:53.7]}
23... Rd8+ {[%clk 0:01:55.6]} 24. Kc2 {[%clk 0:01:53.5]} 24... Rd4 {[%clk
0:01:53.3]} 25. Rd1 {[%clk 0:01:51.1]} 25... Nxe4 {[%clk 0:01:48.8]} 26. Rxd4
{[%clk 0:01:48.1]} 26... exd4 {[%clk 0:01:48.9]} 27. Nexg4 {[%clk 0:01:46.3]}
27... Nxf2 {[%clk 0:01:45.3]} 28. Nxf2 {[%clk 0:01:47.2]} 28... Bxc4 {[%clk
0:01:45.4]} 29. Ne4 {[%clk 0:01:44.9]} 29... Bxa2 {[%clk 0:01:43.9]} 30. Kd3
{[%clk 0:01:43]} 30... Bd5 {[%clk 0:01:42.3]} 31. Nc5 {[%clk 0:01:37.2]} 31...
b6 {[%clk 0:01:42]} 32. Nxa4 {[%clk 0:01:36.5]} 32... c5 {[%clk 0:01:42.7]} 33.
b4 {[%clk 0:01:34.7]} 33... Kc6 {[%clk 0:01:40.5]} 34. Nb2 {[%clk 0:01:29.3]}
34... Bg2 {[%clk 0:01:37.3]} 35. h4 {[%clk 0:01:26.4]} 35... Kd5 {[%clk
0:01:34.2]} 36. Nc4 {[%clk 0:01:23.3]} 36... Bf1+ {[%clk 0:01:33.4]} 0-1

[Event "Early-Titled-Tuesday-Blitz-February-20-2024"]
[Site "Chess.com"]
[Date "2024.02.20"]
[Round "1"]
[White "Felix-Rose"]
[Black "Alexchess1984"]
[Result "0-1"]
[WhiteElo "2265"]
[BlackElo "2617"]
[TimeControl "180+1"]
[EndTime "8:04:43 PST"]
[Termination "Alexchess1984 won by resignation"]

1. e4 {[%clk 0:03:00.1]} 1... c5 {[%clk 0:02:56.2]} 2. Nf3 {[%clk 0:02:59.8]}
2... Nc6 {[%clk 0:02:55.7]} 3. d4 {[%clk 0:02:59.6]} 3... cxd4 {[%clk
0:02:55.5]} 4. Nxd4 {[%clk 0:03:00.5]} 4... g6 {[%clk 0:02:55.7]} 5. c4 {[%clk
0:02:59.7]} 5... Nf6 {[%clk 0:02:55.4]} 6. Nc3 {[%clk 0:02:58.7]} 6... d6 {[%clk
0:02:55.8]} 7. f3 {[%clk 0:02:57.9]} 7... Bg7 {[%clk 0:02:54.4]} 8. Be3 {[%clk
0:02:56.3]} 8... Bd7 {[%clk 0:02:54.3]} 9. Qd2 {[%clk 0:02:53.3]} 9... O-O
{[%clk 0:02:49.6]} 10. Be2 {[%clk 0:02:47.9]} 10... Nxd4 {[%clk 0:02:47.8]} 11.
Bxd4 {[%clk 0:02:47.9]} 11... a5 {[%clk 0:02:48]} 12. O-O {[%clk 0:02:22.4]}
12... Bc6 {[%clk 0:02:42.7]} 13. b3 {[%clk 0:02:15.5]} 13... Nd7 {[%clk
0:02:42.1]} 14. Be3 {[%clk 0:02:07.6]} 14... Nc5 {[%clk 0:02:40.6]} 15. Rac1
{[%clk 0:02:05.4]} 15... e6 {[%clk 0:02:37.6]} 16. Rfd1 {[%clk 0:02:02.1]} 16...
Be5 {[%clk 0:02:37.3]} 17. Nb5 {[%clk 0:01:39.5]} 17... Qh4 {[%clk 0:02:31]} 18.
g3 {[%clk 0:01:31]} 18... Bxg3 {[%clk 0:02:30.5]} 19. hxg3 {[%clk 0:01:30.5]}
19... Qxg3+ {[%clk 0:02:30.2]} 20. Kf1 {[%clk 0:01:30.3]} 20... Nxe4 {[%clk
0:02:26.5]} 21. fxe4 {[%clk 0:01:22.6]} 21... f5 {[%clk 0:02:25.8]} 22. Bf2
{[%clk 0:00:16.5]} 22... fxe4 {[%clk 0:02:24.1]} 23. Qd4 {[%clk 0:00:09.6]}
23... e3 {[%clk 0:02:18.1]} 0-1